bitfinex-derivatives/quotes_ETHF0:USTF0_20250505
["timestamp","ask_amount","ask_price","bid_price","bid_amount"]
[1746469783872,3.732,1817.2,1817.1,3.51151]
[1746469784264,5.91362,1817.3,1817.2,1.10075]
[1746469784463,5.91362,1817.3,1817.2,2.73395]
[1746469784670,7.51662,1817.3,1817.2,2.73395]
[1746469785070,11.24862,1817.3,1817.2,2.73395]
[1746469785572,8.04082,1817.3,1817.2,2.73395]
[1746469788067,4.30882,1817.3,1817.2,2.73395]
[1746469790562,9.44881,1817.8,1817.5,1.1005]
[1746469790770,1.10054,1817.6,1817.5,1.1005]
[1746469791067,1.10054,1817.6,1817.5,2.7538]
[1746469791262,1.10049,1817.7,1817.6,1.10045]
[1746469791471,1.10049,1817.7,1817.6,2.80645]
[1746469792269,4.83249,1817.7,1817.6,2.80645]
[1746469792667,3.732,1817.7,1817.6,2.80645]
[1746469792976,3.732,1817.7,1817.6,3.59595]
[1746469793275,5.34938,1818.0,1817.9,1.10033]
[1746469793276,8.11227,1818.0,1817.9,1.10033]
[1746469794168,8.11227,1818.0,1817.9,2.81583]
[1746469794169,11.84427,1818.0,1817.9,2.81583]
[1746469794473,8.63647,1818.0,1817.9,2.81583]
[1746469795574,8.63647,1818.0,1817.9,1.7155]
[1746469795776,10.29307,1818.0,1817.9,1.7155]
[1746469796274,10.29307,1818.0,1817.9,2.81583]
[1746469796475,6.97387,1818.0,1817.9,2.81583]
[1746469796667,6.97385,1818.0,1817.9,2.81583]
[1746469796869,6.97385,1818.0,1817.9,3.66623]
[1746469797169,5.87358,1818.0,1817.9,3.66623]
[1746469798175,6.97385,1818.0,1817.9,3.66623]
[1746469800679,1.10033,1817.9,1817.8,1.10036]
[1746469800872,4.43343,1817.9,1817.8,1.10036]
[1746469801373,1.10039,1817.8,1817.7,2.8046]
[1746469802283,4.83239,1817.8,1817.7,2.8046]
[1746469803082,1.10039,1817.8,1817.7,2.8046]
[1746469806285,1.10033,1817.9,1817.8,1.10039]
[1746469806576,1.10033,1817.9,1817.8,1.89569]
[1746469806781,3.24189,1818.0,1817.9,1.10033]
[1746469806983,3.24189,1818.0,1817.9,1.94863]
[1746469807176,3.24189,1818.0,1817.9,3.59303]
[1746469807784,4.90319,1818.0,1817.9,3.59303]
[1746469809383,4.90319,1818.0,1817.9,2.74473]
[1746469809575,1.10039,1817.8,1817.7,0.8243]
[1746469809770,1.10039,1817.8,1817.7,3.61135]
[1746469810177,4.29418,1817.9,1817.8,1.10039]
[1746469810383,4.29418,1817.9,1817.8,2.78699]
[1746469811081,8.02618,1817.9,1817.8,2.78699]
[1746469814488,3.732,1817.9,1817.8,2.78699]
[1746469814881,4.83233,1817.9,1817.8,2.78699]
[1746469815086,3.24776282,1818.0,1817.9,1.10033]
[1746469815289,2.14744282,1818.0,1817.9,3.65823]
[1746469815584,3.24771282,1818.0,1817.9,3.65823]
[1746469819694,3.24771282,1818.0,1817.9,1.7338]
[1746469819993,4.88611282,1818.0,1817.9,1.7338]
[1746469820194,8.61811282,1818.0,1817.9,1.7338]
[1746469820391,1.10039,1817.8,1817.7,5.41372]
[1746469820692,1.10045,1817.7,1817.6,3.76351]
[1746469820992,2.73885,1817.7,1817.6,5.32931]
[1746469821494,2.73885,1817.7,1817.6,2.663]
[1746469821686,1.10069,1817.3,1817.2,7.29919488]
[1746469821887,4.30849,1817.3,1817.2,7.29919488]
[1746469822087,8.04049,1817.3,1817.2,7.29919488]
[1746469822493,10.41309,1817.3,1817.2,7.29919488]
[1746469822896,10.41309,1817.3,1817.2,8.39994488]
[1746469823097,10.41309,1817.3,1817.2,10.04114488]
[1746469823797,10.41309,1817.3,1817.2,2.74195]
[1746469824595,7.20529,1817.3,1817.2,2.74195]
[1746469825191,3.47329,1817.3,1817.2,2.74195]
[1746469827200,7.20529,1817.3,1817.2,2.74195]
[1746469828101,3.47329,1817.3,1817.2,2.74195]
[1746469828601,2.3726,1817.3,1817.1,1.10078]
[1746469828799,1.10081,1817.1,1817.0,2.82288]
[1746469829002,1.10081,1817.1,1817.0,1.722]
[1746469829196,4.83281,1817.1,1817.0,2.82288]
[1746469829591,3.732,1817.1,1817.0,2.82288]
[1746469830098,2.69277,1817.2,1817.1,1.10081]
[1746469830398,2.69277,1817.2,1817.1,2.82281]
[1746469830598,0.7845,1817.3,1817.2,1.10075]
[1746469830794,3.2078,1817.4,1817.3,1.10069]
[1746469830996,0.7814,1817.6,1817.5,1.10057]
[1746469831208,1.10048,1817.7,1817.6,1.10051]
[1746469832006,4.26543,1817.8,1817.7,1.10045]
[1746469832202,1.10051,1817.7,1817.6,1.10047]
[1746469837109,4.26544,1817.8,1817.7,1.10045]
[1746469838313,1.88184,1817.8,1817.7,1.10045]
[1746469839506,4.58838,1817.9,1817.8,1.10039]
[1746469839713,4.58833,1817.9,1817.8,1.10039]
[1746469839922,4.05195282,1818.0,1817.9,1.10033]
[1746469841213,5.65945282,1818.0,1817.9,1.10033]
[1746469842013,5.65945282,1818.0,1817.9,2.72643]
[1746469842616,4.05195282,1818.0,1817.9,2.72643]
[1746469843718,2.95164282,1818.0,1817.9,2.72643]
[1746469843910,3.24771282,1818.0,1817.9,2.72643]
[1746469845716,2.14744282,1818.0,1817.9,2.72643]
[1746469850022,3.24771282,1818.0,1817.9,2.72643]
[1746469851020,2.14744282,1818.0,1817.9,2.72643]
[1746469856324,27.90772015,1819.4,1819.3,4.30728]
[1746469856615,6.34427543,1819.5,1819.4,1.09942]
[1746469856809,6.34427543,1819.5,1819.4,4.71757515]
[1746469856810,5.43e-06,1819.5,1819.4,4.71757515]
[1746469857016,5.43e-06,1819.5,1819.4,11.39007515]
[1746469857217,7.6e-07,1819.8,1819.7,1.09924]
[1746469857417,7.6e-07,1819.8,1819.7,8.23523416]
[1746469857610,1.7036,1820.3,1819.9,0.09999924]
[1746469857923,1.7036,1820.3,1820.0,1.6725]
[1746469858222,3.2078,1820.8,1820.5,0.07152851]
[1746469858413,4.3065,1820.6,1820.5,0.07152851]
[1746469858725,3.2078,1820.6,1820.5,0.07152851]
[1746469858916,4.3065,1820.6,1820.5,0.07152851]
[1746469859226,3.2078,1820.6,1820.5,0.07152851]
[1746469859612,3.2078,1820.6,1820.5,1.63802851]
[1746469859919,3.2078,1820.6,1820.5,0.07152851]
[1746469860419,1.09859,1820.8,1820.5,1.17028851]
[1746469860621,1.6957,1820.7,1820.6,3.2078]
[1746469860819,1.6957,1820.7,1820.5,1.63802851]
[1746469861021,1.6957,1820.7,1820.5,2.73677851]
[1746469861420,1.09855,1820.9,1820.6,1.09868]
[1746469861615,1.09858,1820.8,1820.7,1.7161]
[1746469862017,2.74576,1820.9,1820.7,1.7161]
[1746469862218,1.09847,1821.0,1820.7,1.7161]
[1746469862419,2.84555,1821.2,1820.8,5.8708]
[1746469862622,1.7472,1821.2,1820.9,5.4091]
[1746469862923,1.09846,1821.0,1820.9,1.7161]
[1746469863131,1.09852,1820.9,1820.8,2.663]
[1746469863423,2.84558,1821.2,1820.8,2.663]
[1746469863624,4.49308,1821.2,1820.9,1.7161]
[1746469863825,1.09846,1821.0,1820.9,1.7161]
[1746469864024,1.09852,1820.9,1820.8,2.663]
[1746469864329,1.09858,1820.8,1820.7,1.6047]
[1746469864720,4.8432,1820.9,1820.6,2.663]
[1746469864922,1.09864,1820.7,1820.5,22.81499682]
[1746469865117,2.7341,1820.6,1820.5,2.77494851]
[1746469865324,1.6354,1820.6,1820.5,2.77494851]
[1746469865825,1.09861,1820.8,1820.5,1.67622851]
[1746469866027,2.73401,1820.8,1820.7,1.09864]
[1746469866216,0.94465022,1820.8,1820.7,1.09864]
[1746469866421,0.94465022,1820.8,1820.6,1.09867]
[1746469866621,2.04323022,1820.8,1820.7,2.70334]
[1746469866816,2.04323022,1820.8,1820.7,1.6047]
[1746469867428,2.04323022,1820.8,1820.7,2.70334]
[1746469867829,0.94465022,1820.8,1820.5,0.07152851]
[1746469868127,1.0987,1820.6,1820.5,1.17027851]
[1746469868428,1.09868,1820.7,1820.6,1.09869]
[1746469868630,1.0987,1820.6,1820.5,2.83483851]
[1746469869627,1.0987,1820.6,1820.5,0.07152851]
[1746469869824,6.0987,1820.6,1820.5,0.07152851]
[1746469870025,7.7951,1820.6,1820.5,0.07152851]
[1746469870325,6.5271,1820.6,1820.5,0.07152851]
[1746469870729,11.5271,1820.6,1820.5,0.07152851]
[1746469871229,6.5271,1820.6,1820.5,0.07152851]
[1746469873324,11.5271,1820.6,1820.5,0.07152851]
[1746469876623,11.5271,1820.6,1820.5,8.51e-06]
[1746469877529,12.3129,1820.6,1820.5,8.51e-06]
[1746469877736,7.3129,1820.6,1820.5,8.51e-06]
[1746469881840,12.3129,1820.6,1820.5,8.51e-06]
[1746469882238,1.09906,1820.0,1819.9,1.82499924]
[1746469882436,4.30686,1820.0,1819.9,1.82499924]
[1746469882637,4.30686,1820.0,1819.9,7.92411924]
[1746469882941,4.30686,1820.0,1819.9,6.82499924]
[1746469883133,8.03886,1820.0,1819.9,1.82499924]
[1746469883633,8.03886,1820.0,1819.9,2.92411924]
[1746469883829,4.83106,1820.0,1819.9,2.92411924]
[1746469884336,1.09906,1820.0,1819.9,2.92411924]
[1746469886240,4.30686,1820.0,1819.9,2.92411924]
[1746469886736,2.56569399,1820.0,1819.9,1.82499924]
[1746469886935,3.66475399,1820.0,1819.9,1.82499924]
[1746469887128,7.39675399,1820.0,1819.9,1.82499924]
[1746469887333,7.39675399,1820.0,1819.9,2.92411924]
[1746469887535,7.39675399,1820.0,1819.9,1.82499924]
[1746469887735,7.39675399,1820.0,1819.9,2.92411924]
[1746469888338,7.39675399,1820.0,1819.9,1.82499924]
[1746469888643,7.40182481,1820.0,1819.9,1.82499924]
[1746469890743,7.40182481,1820.0,1819.9,2.92411924]
[1746469891342,3.66982481,1820.0,1819.9,2.92411924]
[1746469891743,3.66982481,1820.0,1819.9,3.77311924]
[1746469892241,2.57076481,1820.0,1819.9,3.77311924]
[1746469892545,0.00507082,1820.0,1819.9,3.77311924]
[1746469893344,0.00507082,1820.0,1819.9,8.77311924]
[1746469893548,0.00507082,1820.0,1819.9,3.77311924]
[1746469894046,1.10413082,1820.0,1819.9,3.77311924]
[1746469894246,0.00507082,1820.0,1819.9,3.77311924]
[1746469894447,1.10413082,1820.0,1819.9,3.77311924]
[1746469894946,4.31193082,1820.0,1819.9,3.77311924]
[1746469896741,4.31193082,1820.0,1819.9,2.67399924]
[1746469896941,4.31193082,1820.0,1819.9,3.77311924]
[1746469897239,8.04393082,1820.0,1819.9,3.77311924]
[1746469898241,4.31193082,1820.0,1819.9,3.77311924]
[1746469898441,0.00507082,1820.0,1819.9,3.77311924]
[1746469899752,1.10413082,1820.0,1819.9,3.77311924]
[1746469900049,0.00507082,1820.0,1819.9,3.77311924]
[1746469901951,1.10413082,1820.0,1819.9,3.77311924]
[1746469903150,0.00507082,1820.0,1819.9,3.77311924]
[1746469903752,0.00507082,1820.0,1819.9,4.47436212]
[1746469906252,0.00507082,1820.0,1819.9,3.77311924]
[1746469907954,0.00507082,1820.0,1819.9,4.47464972]
[1746469910955,0.00507082,1820.0,1819.9,7.13764972]
[1746469911255,0.00507082,1820.0,1819.9,15.86964972]
[1746469912258,8.2e-07,1820.0,1819.9,15.86964972]
[1746469914058,8.2e-07,1820.0,1819.9,66.76340446]
[1746469914454,8.2e-07,1820.0,1819.9,76.59340446]
[1746469916059,8.2e-07,1820.0,1819.9,71.59340446]
[1746469916658,2.7999,1820.5,1820.4,1.09882]
[1746469917159,1.7011,1820.5,1820.4,1.09882]
[1746469917454,2.74653,1820.6,1820.5,1.09876]
[1746469917656,4.44763,1820.6,1820.5,1.09876]
[1746469917856,9.44763,1820.6,1820.5,1.09876]
[1746469919758,4.44763,1820.6,1820.5,1.09876]
[1746469920259,3.3489,1820.6,1820.5,1.09876]
[1746469920460,4.4476,1820.6,1820.5,1.09876]
[1746469922057,3.3489,1820.6,1820.5,1.09876]
[1746469922759,4.4476,1820.6,1820.5,1.09876]
[1746469923358,3.3489,1820.6,1820.5,1.09876]
[1746469925059,3.2078,1820.7,1820.6,1.0987]
[1746469927562,4.30644,1820.7,1820.6,1.0987]
[1746469927757,5.98254,1820.7,1820.6,1.0987]
[1746469927952,4.8839,1820.7,1820.6,1.0987]
[1746469928461,3.2078,1820.7,1820.6,1.0987]
[1746469928664,3.2078,1820.7,1820.6,3.7617]
[1746469929563,0.8443,1820.8,1820.7,1.09864]
[1746469929763,1.94288,1820.8,1820.7,2.78044]
[1746469929963,3.53488,1820.8,1820.7,2.78044]
[1746469932058,1.09864,1820.7,1820.6,2.663]
[1746469932254,5.91334,1820.7,1820.6,2.663]
[1746469933172,9.64534,1820.7,1820.6,2.663]
[1746469933464,1.0988,1820.5,1820.4,1.09878]
[1746469934266,6.4173,1820.5,1820.4,1.09878]
[1746469935471,1.09888,1820.3,1820.2,1.09893]
[1746469936059,2.68538,1820.3,1820.2,1.09893]
[1746469936470,1.09894,1820.2,1820.1,3.76195]
[1746469936766,1.099,1820.1,1820.0,1.09902]
[1746469937366,2.7077,1820.1,1820.0,1.09902]
[1746469938262,6.4397,1820.1,1820.0,1.09902]
[1746469938561,1.09906,1820.0,1819.9,1.19906924]
[1746469938871,3.56066,1820.0,1819.9,1.19906924]
[1746469942773,3.56066,1820.0,1819.9,0.09999924]
[1746469943374,3.56066,1820.0,1819.9,1.19911924]
[1746469945074,6.76846,1820.0,1819.9,0.09999924]
[1746469946271,10.50046,1820.0,1819.9,0.09999924]
[1746469946467,7.29266,1820.0,1819.9,0.09999924]
[1746469946870,10.50046,1820.0,1819.9,0.09999924]
[1746469952590,7.29266,1820.0,1819.9,0.09999924]
[1746469952793,10.50046,1820.0,1819.9,0.09999924]
[1746469954882,8.89176,1820.0,1819.9,0.09999924]
[1746469955081,8.89176,1820.0,1819.9,1.66189924]
[1746469955291,10.45876,1820.0,1819.9,1.66189924]
[1746469955890,8.89176,1820.0,1819.9,1.66189924]
[1746469956090,5.68396,1820.0,1819.9,1.66189924]
[1746469957191,5.68396,1820.0,1819.9,2.76101924]
[1746469957399,3.732,1820.0,1819.9,6.79891924]
[1746469957588,3.732,1820.0,1819.9,11.79891924]
[1746469958189,4.30679,1820.2,1820.1,1.099]
[1746469958797,3.2078,1820.2,1820.0,1.7046]
[1746469959092,4.3068,1820.2,1820.1,1.9484]
[1746469959293,4.3068,1820.2,1820.1,1.28213107]
[1746469959497,4.3068,1820.2,1820.1,0.18313107]
[1746469959895,4.3068,1820.2,1820.1,2.98673107]
[1746469960088,3.2078,1820.2,1820.1,2.98673107]
[1746469960697,4.30674,1820.2,1820.1,2.98673107]
[1746469960995,1.09894,1820.2,1820.1,2.98673107]
[1746469962097,4.83093,1820.3,1820.2,1.09892]
[1746469962398,1.09894,1820.2,1820.1,2.98668107]
[1746469962899,4.83092,1820.3,1820.2,1.09894]
[1746469963091,1.09892,1820.3,1820.2,2.77294]
[1746469964192,4.83092,1820.3,1820.2,2.77294]
[1746469965399,4.83092,1820.3,1820.2,1.674]
[1746469966495,1.099,1820.1,1820.0,1.09903]
[1746469966794,1.099,1820.1,1820.0,2.65973]
[1746469967102,4.831,1820.1,1820.0,2.65973]
[1746469968196,4.831,1820.1,1820.0,1.5607]
[1746469968400,1.09906,1820.0,1819.9,0.09999924]
[1746469968596,3.65566,1820.0,1819.9,0.09999924]
[1746469969201,7.38766,1820.0,1819.9,0.09999924]
[1746469969401,7.38766,1820.0,1819.9,2.82711924]
[1746469970205,4.5873,1820.0,1819.9,2.82711924]
[1746469971205,5.68636,1820.0,1819.9,2.82711924]
[1746469972504,4.5873,1820.0,1819.9,2.82711924]
[1746469972903,5.68636,1820.0,1819.9,2.82711924]
[1746469974303,4.5873,1820.0,1819.9,2.82711924]
[1746469974692,3.732,1820.0,1819.9,2.82711924]
[1746469974897,3.732,1820.0,1819.9,6.03491924]
[1746469975196,3.2078,1820.2,1820.1,1.099]
[1746469975602,3.2078,1820.2,1820.1,3.5333]
[1746469978705,1.09887,1820.4,1820.3,1.09888]
[1746469978901,1.09873,1820.6,1820.3,6.8318]
[1746469979096,3.2078,1820.7,1820.6,1.0987]
[1746469979301,4.30644,1820.7,1820.6,1.0987]
[1746469979706,4.30644,1820.7,1820.6,2.7251]
[1746469979896,3.2078,1820.7,1820.6,2.7251]
[1746469980707,2.82737,1820.9,1820.8,1.09858]
[1746469981608,2.82737,1820.9,1820.8,2.72498]
[1746469981810,1.7288,1820.9,1820.8,2.72498]
[1746469982205,5.4608,1820.9,1820.8,2.72498]
[1746469983109,1.7288,1820.9,1820.8,2.72498]
[1746469984012,5.92811,1821.0,1820.9,1.09852]
[1746469984211,2.72031,1821.0,1820.9,1.09852]
[1746469984512,4.33631,1821.0,1820.9,1.09852]
[1746469985211,8.06831,1821.0,1820.9,1.09852]
[1746469985612,6.9698,1821.0,1820.8,2.72493]
[1746469985914,8.06832,1821.0,1820.8,2.72493]
[1746469986113,1.589,1820.9,1820.8,2.72493]
[1746469986309,2.68752,1820.9,1820.8,2.72493]
[1746469986806,1.589,1820.9,1820.8,2.72493]
[1746469987007,6.45226,1821.0,1820.9,1.09852]
[1746469987315,2.72026,1821.0,1820.9,2.75242]
[1746469987513,4.30926,1821.0,1820.9,2.75242]
[1746469988212,8.04126,1821.0,1820.9,2.75242]
[1746469989017,8.04126,1821.0,1820.9,1.6539]
[1746469989212,1.09852,1820.9,1820.8,1.09853]
[1746469989415,2.82992,1820.9,1820.8,2.80863]
[1746469989616,1.7314,1820.9,1820.8,2.80863]
[1746469990217,2.82992,1820.9,1820.8,2.80863]
[1746469992217,5.4634,1820.9,1820.8,2.80863]
[1746469992411,6.56192,1820.9,1820.8,2.80863]
[1746469994018,6.56192,1820.9,1820.8,1.7101]
[1746469994517,6.56192,1820.9,1820.8,2.80868]
[1746469996024,13.6712,1820.9,1820.1,7.28388562]
[1746469996221,13.6712,1820.9,1820.0,8.96658562]
[1746469996222,3.2078,1820.3,1820.0,8.96658562]
[1746469996522,6.8208,1820.6,1820.1,1.6827]
[1746469996719,1.09876,1820.5,1820.1,5.26696]
[1746469996920,1.09872,1820.6,1820.2,4.43005]
[1746469997121,1.09872,1820.6,1820.3,2.5012]
[1746469997423,1.6287,1820.7,1820.4,1.6827]
[1746469997720,1.09872,1820.6,1820.4,3.61827]
[1746469998023,1.09872,1820.6,1820.5,1.5957]
[1746469998519,1.09872,1820.6,1820.5,2.69446]
[1746469998723,1.09872,1820.6,1820.5,1.5957]
[1746469999024,4.30652,1820.6,1820.5,2.69446]
[1746469999222,0.8476,1820.7,1820.6,1.0987]
[1746469999524,1.09864,1820.7,1820.6,1.5957]
[1746470000024,4.30644,1820.7,1820.6,1.5957]
[1746470000227,3.732,1820.7,1820.6,2.6944]
[1746470000830,4.83064,1820.7,1820.6,2.6944]
[1746470001125,1.196386,1820.8,1820.7,1.09864]
[1746470001324,1.196386,1820.8,1820.7,4.39564]
[1746470005127,2.026486,1820.8,1820.7,4.39564]
[1746470006428,1.196336,1820.8,1820.7,4.39564]
[1746470007325,0.097756,1820.8,1820.7,4.39564]
[1746470014432,1.196336,1820.8,1820.7,4.39564]
[1746470014632,0.097756,1820.8,1820.7,4.39564]
[1746470019238,0.097756,1820.8,1820.7,5.09562102]
[1746470020140,0.097756,1820.8,1820.7,8.82762102]
[1746470020337,6e-06,1820.8,1820.7,8.82762102]
[1746470020737,6e-06,1820.8,1820.7,13.82762102]
[1746470021943,6e-06,1820.8,1820.7,16.49062102]
[1746470023832,6e-06,1820.8,1820.7,34.56291014]
[1746470024648,0.1,1821.2,1821.1,1.0984]
[1746470025238,0.1,1821.2,1821.1,3.5123]
[1746470025640,2.74495,1821.8,1821.1,3.5123]
[1746470025641,3.2078,1822.0,1821.1,23.1147]
[1746470025840,5.13692,1822.0,1821.9,1.09791]
[1746470026049,18.85304382,1822.8,1821.9,1.09791]
[1746470026050,15.07463747,1824.1,1823.4,2.74246]
[1746470026245,15.51434637,1824.1,1823.7,3.2078]
[1746470026539,2.4655,1824.0,1823.5,1.6475]
[1746470026737,2.4655,1824.0,1823.7,3.2078]
[1746470026934,2.4655,1824.0,1823.8,1.6475]
[1746470027141,6.76998,1824.0,1823.5,3.2078]
[1746470027341,6.1975,1824.0,1823.6,1.6475]
[1746470027546,6.1975,1824.0,1823.7,1.0968]
[1746470027743,15.07463747,1824.1,1823.7,3.2078]
[1746470027941,18.28243747,1824.1,1823.8,1.6475]
[1746470028147,3.2078,1823.9,1823.5,3.2078]
[1746470028545,1.09682,1823.8,1823.5,3.2078]
[1746470028744,6.60488,1823.8,1823.5,3.2078]
[1746470028949,3.865,1823.7,1823.5,3.2078]
[1746470029142,6.9398,1823.7,1823.3,1.6977]
[1746470029344,3.732,1823.7,1823.3,1.6977]
[1746470029549,3.732,1823.7,1823.4,1.09697]
[1746470029749,3.732,1823.7,1823.5,1.6977]
[1746470030250,3.865,1823.8,1823.5,4.9055]
[1746470030450,1.6431,1823.9,1823.6,1.09687]
[1746470030652,1.6431,1823.9,1823.7,1.6977]
[1746470031246,5.3751,1823.9,1823.7,1.6977]
[1746470031451,5.3751,1823.9,1823.7,4.9055]
[1746470031751,5.3751,1823.9,1823.7,6.00233]
[1746470032045,5.3751,1823.9,1823.7,4.9055]
[1746470032252,1.6431,1823.9,1823.7,4.9055]
[1746470033348,1.6431,1823.9,1823.5,3.2078]
[1746470033549,1.6431,1823.9,1823.4,1.7049]
[1746470033944,1.09692,1823.6,1823.4,1.7049]
[1746470034146,1.6444,1823.5,1823.4,1.7049]
[1746470034543,1.6444,1823.5,1823.4,4.9127]
[1746470034745,1.6444,1823.5,1823.4,1.7049]
[1746470034944,1.6444,1823.5,1823.4,4.9127]
[1746470035239,3.863,1823.7,1823.4,4.9127]
[1746470035440,2.70836,1823.9,1823.6,3.2078]
[1746470035645,0.7938,1824.0,1823.8,3.2078]
[1746470035846,1.89045,1824.0,1823.9,1.6446]
[1746470036046,1.09661,1824.1,1823.9,2.74131]
[1746470036245,3.863,1824.2,1823.9,2.74129]
[1746470036441,1.09664,1824.1,1823.9,1.6446]
[1746470036853,8.21582,1824.3,1823.9,1.6446]
[1746470037044,3.2078,1824.0,1823.6,3.2078]
[1746470037240,3.2078,1824.0,1823.6,4.30466]
[1746470037241,2.70835,1823.9,1823.6,4.30466]
[1746470037444,1.0967,1824.0,1823.8,1.09677]
[1746470037646,1.0967,1824.0,1823.9,1.6673]
[1746470038247,2.8043,1824.0,1823.9,1.6673]
[1746470038449,1.09678,1823.8,1823.6,4.30465]
[1746470038646,1.7076,1824.0,1823.7,2.76411]
[1746470038850,1.09676,1823.9,1823.7,2.76411]
[1746470039252,1.09677,1823.8,1823.7,1.6673]
[1746470039447,1.09688,1823.7,1823.5,4.3303]
[1746470039652,1.09688,1823.7,1823.5,5.42721]
[1746470039951,1.09689,1823.6,1823.5,4.3303]
[1746470040142,2.80449,1823.6,1823.5,4.3303]
[1746470040657,3.2078,1824.1,1823.7,1.09682]
[1746470040952,1.09668,1824.0,1823.8,1.6713]
[1746470041156,1.09668,1824.0,1823.9,1.09671]
[1746470041755,1.09668,1824.0,1823.8,1.6713]
[1746470042054,1.09668,1824.0,1823.9,1.09671]
[1746470043259,1.09662,1824.1,1824.0,1.09663]
[1746470043450,1.09665,1824.0,1823.9,2.76797]
[1746470043647,7.52389,1824.3,1823.9,2.76797]
[1746470043854,1.09671,1823.9,1823.8,3.2078]
[1746470044056,3.2078,1823.9,1823.6,1.09688]
[1746470044259,2.663,1823.8,1823.7,1.09682]
[1746470044459,2.663,1823.8,1823.7,1.09683]
[1746470044757,1.09689,1823.6,1823.5,5.8708]
[1746470044956,1.09689,1823.6,1823.5,1.6762]
[1746470045749,1.09689,1823.6,1823.5,2.77315]
[1746470046356,6.60315,1823.7,1823.3,2.663]
[1746470046552,2.7426,1823.4,1823.0,2.663]
[1746470046759,1.09716,1823.2,1822.9,4.3614]
[1746470047062,1.6786,1823.3,1823.2,1.09713]
[1746470047263,4.95806,1823.4,1823.3,1.09707]
[1746470047455,1.09706,1823.4,1823.3,1.09707]
[1746470047758,3.732,1823.5,1823.4,1.09701]
[1746470048058,3.732,1823.5,1823.4,7.75150248]
[1746470048255,2.77523,1824.1,1823.9,1.09671]
[1746470048458,2.77523,1824.1,1824.0,1.6984]
[1746470048856,1.09673,1823.9,1823.8,1.09677]
[1746470049665,1.0967,1824.0,1823.8,1.09677]
[1746470049960,1.5994,1823.9,1823.8,1.09677]
[1746470050363,1.6543,1824.3,1823.9,2.74177]
[1746470050560,8.21121,1824.3,1824.0,4.8073]
[1746470050761,8.21121,1824.3,1824.1,1.09654]
[1746470050959,3.2537,1824.3,1824.2,1.09653]
[1746470051169,0.8334,1824.3,1824.2,1.88418443]
[1746470051361,1.5994,1824.4,1824.3,1.09647]
[1746470051559,1.5994,1824.4,1824.3,2.69597]
[1746470052260,1.88623,1824.6,1824.5,1.09635]
[1746470052565,3.2078,1825.1,1824.6,1.09625]
[1746470052859,1.09618,1824.8,1824.7,1.09619]
[1746470053066,5.5496,1824.9,1824.8,1.09617]
[1746470053363,0.8258,1825.0,1824.8,1.88130203]
[1746470053557,1.09611,1824.9,1824.8,0.78513203]
[1746470053963,1.09611,1824.9,1824.4,1.0964]
[1746470053964,2.74104,1824.4,1824.0,3.75961]
[1746470054156,1.09648,1824.3,1824.2,1.09651]
[1746470054360,3.861,1824.6,1824.2,4.41606653]
[1746470054556,2.78497,1824.5,1824.4,1.0964]
[1746470054955,1.6886,1824.5,1824.4,1.0964]
[1746470055157,1.09631,1824.6,1824.5,1.09635]
[1746470055363,1.09617,1824.8,1824.6,1.09626]
[1746470055562,1.09617,1824.8,1824.5,2.14891536]
[1746470055563,1.09617,1824.8,1824.7,2.14877224]
[1746470055767,1.09617,1824.8,1824.7,0.78758636]
[1746470055768,2.78477,1824.8,1824.7,0.78758636]
[1746470056069,6.51677,1824.8,1824.7,1.21045213]
[1746470056273,6.51677,1824.8,1824.7,1.51909577]
[1746470056572,3.732,1824.8,1824.7,4.72689577]
[1746470056872,3.732,1824.8,1824.7,1.51909577]
[1746470057069,1.09617,1824.8,1824.7,2.22175337]
[1746470057270,1.09617,1824.8,1824.7,1.12552337]
[1746470057471,10.11617,1824.8,1824.7,0.7026576]
[1746470057768,1.09633,1824.6,1824.4,1.5645]
[1746470057968,1.576,1824.7,1824.5,0.42283955]
[1746470058163,5.96765,1824.9,1824.8,1.09617]
[1746470058364,5.96765,1824.9,1824.8,0.41354891]
[1746470058365,4.30391,1824.9,1824.8,0.41354891]
[1746470058975,1.09623,1824.7,1824.6,1.5645]
[1746470059174,4.30403,1824.7,1824.6,1.97738545]
[1746470059366,4.30403,1824.7,1824.6,1.97740385]
[1746470059774,4.30403,1824.7,1824.6,0.41290385]
[1746470060671,1.09623,1824.7,1824.6,0.41290385]
[1746470061170,1.09623,1824.7,1824.6,1.50915385]
[1746470061871,1.09621,1824.8,1824.7,1.09621]
[1746470062067,5.95526,1824.9,1824.8,1.09617]
[1746470062273,1.09616,1824.9,1824.8,1.50907385]
[1746470062574,0.999,1825.2,1825.0,1.09603]
[1746470062875,1.09593,1825.2,1825.1,0.4124634]
[1746470063073,1.09617,1824.8,1824.7,0.8647]
[1746470063277,1.09615,1824.9,1824.7,2.13667784]
[1746470063572,0.7889,1825.1,1824.9,1.09606]
[1746470063780,1.88489,1825.1,1825.0,1.7242]
[1746470063974,4.30377,1825.2,1825.1,1.09599]
[1746470064175,1.25847807,1825.3,1825.2,1.09593]
[1746470064376,1.25847807,1825.3,1825.2,2.82013]
[1746470065074,1.25847807,1825.3,1825.2,6.55213]
[1746470065281,0.84601467,1825.3,1825.2,14.21513]
[1746470065475,0.84601467,1825.3,1825.2,12.1382]
[1746470065779,0.84601467,1825.3,1825.2,13.23413]
[1746470066079,0.84601467,1825.3,1825.2,9.50213]
[1746470066278,0.84601467,1825.3,1825.2,14.50213]
[1746470066477,0.84601467,1825.3,1825.2,19.33213]
[1746470066478,0.69301467,1825.3,1825.2,19.33213]
[1746470066674,0.69301467,1825.3,1825.2,24.33213]
[1746470066878,0.69301467,1825.3,1825.2,19.33213]
[1746470067072,0.69301467,1825.3,1825.2,23.06413]
[1746470067278,2.67197,1825.7,1825.6,1.09569]